Cogmind - Beta 11.1 @@@ ROGUE MODE // 2022.05.25 @ 19:14:14 Player: Decinym Result: Destroyed by as-07962 with Assembled Maul Performance ------------- Evolutions (0) 0 Regions Visited (2) 400 Robots Destroyed (17) 85 Value Destroyed (376) 376 Prototype IDs (0) 0 Alien Tech Used (0) 0 Bonus (0) 0 TOTAL SCORE: 861 Bonus ------- None Cogmind --------- Core Integrity 0/250 Matter 269/300 Energy 92/100 System Corruption 0% Temperature Cool (0) Movement Walking (190) Ox1 Location -10/Mines Parts ------- > --- POWER (1) -------- (None) > --- PROPULSION (2) --- Aluminum Leg Aluminum Leg > --- UTILITY (2) ------ Improved Heat Sink Large Storage Unit > --- WEAPON (2) ------- Small Laser > --- INVENTORY (15) --- Ion Engine Light Ion Engine Light Nuclear Core Aluminum Leg Aluminum Leg Aluminum Leg Wheel Small Storage Unit High-capacity Storage Unit Transport Network Coupler Peak State ------------ > --- POWER ------------ Light Ion Engine > --- PROPULSION ------- Aluminum Leg Aluminum Leg > --- UTILITY ---------- Improved Heat Sink Large Storage Unit > --- WEAPON ----------- Small Laser > --- INVENTORY -------- Ion Engine Light Ion Engine Light Nuclear Core Aluminum Leg Aluminum Leg Aluminum Leg Small Storage Unit High-capacity Storage Unit Transport Network Coupler [Rating: 9] Favorites ----------- Power Light Ion Engine Engine Light Ion Engine Propulsion Compact Wheel Treads Light Treads Leg Aluminum Leg Wheel Compact Wheel Utility Large Storage Unit Device Sensor Array Storage Large Storage Unit Weapon EM Pulse Gun Energy Gun EM Pulse Gun Ballistic Gun Light Assault Rifle Ballistic Cannon Light Cannon Build | -11 -10 -10 ------- Run | Scr Mat Min Slots Evolved . | . . . Power . | . . . Propulsion . | . . . Utility . | . . . Weapon . | . . . Parts Attached 20 | . 12 8 Power 4 | . 3 1 Engine 4 | . 3 1 Core . | . . . Reactor . | . . . Propulsion 8 | . 3 5 Treads 3 | . 1 2 Leg 3 | . . 3 Wheel 2 | . 2 . Hover . | . . . Flight . | . . . Utility 4 | . 3 1 Device 2 | . 1 1 Storage 2 | . 2 . Processor . | . . . Hackware . | . . . Protection . | . . . Artifact . | . . . Weapon 4 | . 3 1 Energy Gun 2 | . 1 1 Energy Cannon . | . . . Ballistic Gun 1 | . 1 . Ballistic Cannon 1 | . 1 . Launcher . | . . . Special Weapon . | . . . Impact Weapon . | . . . Slashing Weapon . | . . . Piercing Weapon . | . . . Special Melee Weapon . | . . . Unidentified Prototypes . | . . . Parts Lost 13 | . 6 7 Power 4 | . 2 2 Propulsion 4 | . 1 3 Utility 1 | . 1 . Weapon 4 | . 2 2 Highest Loss Streak 5 | . 5 4 To Critical Strikes . | . . . Average Slot Usage (%) 87 | . 92 78 Engine 13 | . 13 13 Treads 6 | . 5 8 Leg 8 | . 4 14 Wheel 12 | . 17 3 Device 7 | . 8 5 Storage 14 | . 14 14 Energy Gun 9 | . 6 13 Ballistic Gun 9 | . 15 . Ballistic Cannon 5 | . 5 4 Naked Turns . | . . . Heaviest Build 49 | 13 49 28 Greatest Support 40 | 20 26 40 Greatest Overweight (x) 1 | . 1 1 Average Overweight (x) . | . . . Largest Inventory Capacity 20 | . 20 15 Average Capacity 14 | . 14 15 Most Carried 11 | . 10 11 Average Carried 8 | . 8 8 Final Capacity 15 | 8 15 15 Final Carried 10 | 6 9 10 Class Distribution -------------------- 100% | Mutant Dominant Class ---------------- Mutant | -10/Materials Mutant | -10/Mines Resources | -11 -10 -10 ----------- Run | Scr Mat Min Matter Collected 481 | 200 111 170 Remotely . | . . . Salvage Created 462 | . 276 186 Parts 27 | . 20 7 Haulers Intercepted 1 | . 1 . Recyclers Shooed . | . . . Parts Field Recycled . | . . . Retrieved Matter . | . . . Parts Self-Destructed . | . . . Prevented . | . . . Kills | -11 -10 -10 ------- Run | Scr Mat Min Combat Hostiles Destroyed 17 | . 12 5 Guns 9 | . 5 4 Cannons 7 | . 6 1 AOE 1 | . 1 . Classes Destroyed 4 | . 3 1 Hauler 1 | . 1 . Swarmer 9 | . 9 . Grunt 7 | . 3 4 Assembled 1 | . . 1 Best Kill Streak 6 | . 6 2 Combat Bots Only 6 | . 6 2 Max Kills in Single Turn 1 | . 1 1 Gunslinging . | . . . Exploded 1 | . 1 . Melee . | . . . Uniques/NPCs Destroyed . | . . . Combat | -11 -10 -10 -------- Run | Scr Mat Min Damage Taken 1460 | . 597 863 Core 252 | . 126 126 Absorbed by Shields . | . . . Core Remaining (%) 100 | 100 . . Volleys Fired 69 | . 35 34 Largest 2 | . 2 2 Hottest 75 | . 75 75 Shots Fired 113 | . 70 43 Gun 95 | . 61 34 Cannon 18 | . 9 9 Launcher . | . . . Special . | . . . Kinetic 71 | . 62 9 Thermal 25 | . . 25 Explosive . | . . . Electromagnetic 17 | . 8 9 Robot Hit Streak 7 | . 5 7 Robot Miss Streak 8 | . 8 3 Penetration Max . | . . . Secondary Targets 2 | . 2 . Max Gunslinging Chain 1 | . 1 . Shots Hit Robots 62 | . 33 29 Core Hits 25 | . 15 10 Critical Kills . | . . . Critical Parts Destroyed . | . . . Critical Strikes 2 | . 1 1 Blast 1 | . 1 . Corrupt 1 | . . 1 Melee Attacks . | . . . Impact . | . . . Slashing . | . . . Piercing . | . . . Sneak Attacks . | . . . Combat Hostiles . | . . . Follow-up Attacks . | . . . Damage Inflicted 1116 | . 695 421 Guns 595 | . 327 268 Cannons 204 | . 100 104 Explosions 317 | . 268 49 Melee . | . . . Ramming . | . . . Kinetic 476 | . 372 104 Thermal 315 | . 68 247 Explosive 200 | . 200 . Electromagnetic 125 | . 55 70 Impact . | . . . Slashing . | . . . Piercing . | . . . Highest Corruption . | . . . Average Corruption . | . . . Corruption Purged . | . . . Corruption Blocked . | . . . Overload Shots . | . . . Overflow Damage . | . . . Projectiles . | . . . Explosions . | . . . Melee . | . . . Knockbacks 2 | . . 2 Impact . | . . . Kinetic 2 | . . 2 Secondary . | . . . Self-Inflicted Damage 24 | . 24 . Shots 1 | . 1 . Rammed . | . . . Targets Rammed . | . . . Kicked . | . . . Crushed . | . . . Highest Temperature 111 | . 36 111 Average Temperature 39 | . 15 47 Received Heat Transfer 159 | . 12 147 Siege Activations . | . . . Robots Corrupted . | . . . Combat Hostiles . | . . . Parts Fried 1 | . . 1 Impact Corruptions . | . . . Robots Melted . | . . . Combat Hostiles . | . . . Parts Melted 1 | . . 1 Heat Transferred 600 | . 100 500 Parts Sabotaged . | . . . Parts Stolen . | . . . Parts Stripped . | . . . Power Chain Reactions 3 | . 2 1 Missiles Intercepted . | . . . Alert | -11 -10 -10 ------- Run | Scr Mat Min Peak Influence 225 | . 225 141 Initial 55 | . . 55 Average 86 | . 69 116 Maximum Alert Level 1 | . 1 . Low Security (%) 94 | . 91 100 Level 1 5 | . 8 . Level 2 . | . . . Level 3 . | . . . Level 4 . | . . . Level 5 . | . . . High Security . | . . . Max Security . | . . . Squads Dispatched 3 | . 3 . Investigation 1 | . 1 . Extermination . | . . . Reinforcement 2 | . 2 . Assault . | . . . Garrison . | . . . Intercept . | . . . Searches Triggered . | . . . Construction Impeded . | . . . Haulers Reinforced . | . . . Active Scanning Responses . | . . . Cargo Convoy Interrupts . | . . . Stealth | -11 -10 -10 --------- Run | Scr Mat Min Distress Signals 1 | . 1 . Communications Jammed . | . . . Distress Signals . | . . . Times Spotted 35 | . 16 19 Peak Tracking Total 8 | . 8 8 Tactical Retreats 1 | . . 1 Traps | -11 -10 -10 ------- Run | Scr Mat Min Traps Triggered 1 | . 1 . Indirectly . | . . . Trap Hack Attempts . | . . . Triggered . | . . . Disarmed . | . . . Reprogrammed . | . . . Reused . | . . . Traps Extracted . | . . . Installed . | . . . Triggered . | . . . Machines | -11 -10 -10 ---------- Run | Scr Mat Min Machines Disabled 2 | . 2 . Max in Single Turn 1 | . 1 . Machines Sabotaged . | . . . Garrisons Compromised . | . . . Overloaded Fab Kills . | . . . Hacking | -11 -10 -10 --------- Run | Scr Mat Min Machines Accessed 2 | . 2 . Terminals 2 | . 2 . Fabricators . | . . . Repair Stations . | . . . Recycling Units . | . . . Scanalyzers . | . . . Garrison Access . | . . . Total Hacks 5 | . 5 . Successful 1 | . 1 . Failed 4 | . 4 . Catastrophic 1 | . 1 . Database Lockouts . | . . . Manual 5 | . 5 . Terminals 5 | . 5 . Fabricators . | . . . Repair Stations . | . . . Recycling Units . | . . . Scanalyzers . | . . . Garrison Access . | . . . Terminal Hacks 1 | . 1 . Branch Access Points 1 | . 1 . Fabricator Hacks . | . . . Repair Station Hacks . | . . . Recycling Unit Hacks . | . . . Scanalyzer . | . . . Garrison Access Hacks . | . . . Unauthorized Hacks . | . . . Terminals . | . . . Fabricators . | . . . Repair Stations . | . . . Recycling Units . | . . . Scanalyzers . | . . . Garrison Access . | . . . Data Cores Recovered . | . . . Used . | . . . Hacking Detections 2 | . 2 . Full Trace Events . | . . . Feedback Events . | . . . Feedback Blocked . | . . . Robot Schematics Acquired . | . . . Robots Built . | . . . Authchips . | . . . Time . | . . . Total Robot Build Rating . | . . . Part Schematics Acquired . | . . . Parts Built . | . . . Authchips . | . . . Time . | . . . Total Part Build Rating . | . . . Parts Repaired . | . . . Time . | . . . Parts Recycled . | . . . Recycled Matter . | . . . Retrieved Matter . | . . . Retrieved Components . | . . . Parts Scanalyzed . | . . . Part Schematics Acquired . | . . . Parts Damaged . | . . . Bothacking | -11 -10 -10 ------------ Run | Scr Mat Min Used RIF Installer . | . . . Robots Hacked . | . . . Non-combat . | . . . Combat . | . . . Robot Hacks Applied . | . . . Relay Couplers Released . | . . . Fabnet Peak Effective % . | . . . Robots Rewired . | . . . Allies Hacked . | . . . Hacks Repelled . | . . . Allies | -11 -10 -10 -------- Run | Scr Mat Min Total Allies . | . . . Largest Group . | . . . Highest-Rated Group . | . . . Highest-Rated Ally . | . . . Total Orders . | . . . Ally Attacks . | . . . Total Damage . | . . . Kills . | . . . Allies Corrupted . | . . . Allies Melted . | . . . Intel | -11 -10 -10 ------- Run | Scr Mat Min Robot Analysis Total . | . . . Derelict Logs Recovered . | . . . Drone Launches . | . . . Drone Recoveries . | . . . Exploration | -11 -10 -10 ------------- Run | Scr Mat Min Turns Passed 896 | . 578 318 Spaces Moved 526 | 1 380 145 Core . | . . . Treads 48 | . 8 40 Legs 109 | 1 53 55 Wheels 369 | . 319 50 Hover . | . . . Flight . | . . . Fastest Speed 90 | 120 90 115 Average Speed 125 | 120 113 156 Slowest Speed 240 | 120 240 240 Overloaded Moves . | . . . Propulsion Burnouts . | . . . Robots Hopped . | . . . Cave-ins Triggered . | . . . Exploration Rate (%) 30 | 1 57 32 Regions Visited 2 Branch Regions 1 Pre-discovered Areas . | . . . Known Exits Taken 1 | . 1 . Unknown Exits Taken 1 | 1 . . Scrap Searched . | . . . Spaces Dug . | . . . Terrain Destroyed 24 | . 21 3 Melee . | . . . Projectile . | . . . AOE 24 | . 21 3 Terrain Rammed . | . . . Walls Destroyed . | . . . Machines Disabled . | . . . Actions | -11 -10 -10 --------- Run | Scr Mat Min Total 649 | . 456 193 Wait 25 | . 25 . Move 524 | . 379 145 Hop . | . . . Pick Up 11 | . 5 6 Fast Attach 3 | . 2 1 Attach 9 | . 4 5 Detach . | . . . Swap 8 | . 6 2 Drop . | . . . Fire 69 | . 35 34 Melee . | . . . Ram . | . . . Kick . | . . . Crush . | . . . Escape Stasis . | . . . Rewire . | . . . Trap . | . . . Miscellaneous . | . . . Route ------- -11/Scrapyard -10/Materials (discovered 3 exits: [*Mat x2] / *Min) -10/Mines History --------- Turn | Location | Event 1 | -11/Scrapyard | Discovered new exit (range 0) 1 | -11/Scrapyard | Entered Materials 301 | -10/Materials | Build established: Mutant 377 | -10/Materials | Lost 5 parts (1p1n1u2w) 387 | -10/Materials | Identified exit to Mines 414 | -10/Materials | Discovered new exit (range 12) 474 | -10/Materials | Discovered new exit (range 15) 543 | -10/Materials | Core integrity fell below 50% 579 | -10/Materials | Entered Mines 650 | -10/Mines | Assembled infested the area 698 | -10/Mines | Met a Derelict bent on vengeance 705 | -10/Mines | Lost 4 parts (1p1n2w) 894 | -10/Mines | Core integrity fell below 20% 897 | -10/Mines | Destroyed by as-07962 with Assembled Maul Last Messages --------------- 00749_ Core Extractor disabled. 00750_ K-01 Serf collects debris. 00758_ Aluminum Leg melted. 00758_ G-47 Trooper destroyed. 00760_ Acquired 44 matter. 00761_ Lgt. Treads destroyed. 00767_ Acquired Imp. Heat Sink. 00772_ G-34 Mercenary destroyed. 00776_ Acquired 47 matter. 00780_ Acquired Aluminum Leg. 00785_ K-01 Serf cleans the Core Extractor. 00785_ Acquired Ion Engine. 00787_ K-01 Serf cleans the Core Extractor. 00799_ K-01 Serf cleans the Laser Drill. 00804_ K-01 Serf collects debris. 00827_ Acquired Lgt. Nuclear Core. 00878_ Acquired Wheel. 00880_ Knocked back. 00891_ Lgt. Ion Engine destroyed. 00891_ as-81163 destroyed. Map ----- +----------------------------------------------------+ | ?????????????????????????????????# ? ? #??? | | ?????????????????????????????????# ? #??? | | ?????????????????????????????????# """ """ #??? | | ?????????????????????????????????# """ """ #??? | | ?????????????????????????????????# """ """ #??? | | ?????????????????????????????????# #??? | | ?????????????????????????????????# """ """ #??? | | ?????????????????????????????????# """ """ #??? | | ?????????????????????????????????# """ """ #??? | | ?????????????????????????????????# #??? | | ?????????????????????????????????# """ """ #??? | | ?????????????????????????????????# """ """ #??? | | ?????????????????????????????????# "" """ #??? | | ?????????????????????????????????# #??? | | ?????????????????????????????????# ###########??? | | ?????????????????????????????????# #??????###???? | | ?????????????????????????????????# #?????# #???? | | ?????????????????????????????????# #???## #???? | | ????????????????????????????????## ##### ##??? | | ????????????????????????######### ## #??? | | ????????????????????????# #???? | | ??????????????#######???# ##### ####???? | | ??????????????? ??# #???## ####??????? | | ????????????????? ?# #????## ##?????????? | | ??????????????????# ?# #?????### #??????????? | | ?????????????????## ##@ #???????# #??????????? | | ????????????????## #aa####### #??????????? | | ????????????????# =% % a ###??????????? | | ????????????????# ! #????????????? | | ????????????????## """ #######????????????? | | ?????????????????## """ a ## #???????????????? | | ??????????? ##???### "" ####??????????????? | | ??????????? ???## % ##?????????????? | | ?????????? #### #?????????????? | | ???????????????# #?????????????? | | ???????????????# ##?????????????? | | ???????????????###### % ##??????????????? | | ????????????????????# !% # #???????????????? | | ????????????????????### %##??????????????? | | ?????????????????????# ## #??????????????? | | ????????????????????# % #??????????????? | | ????????????????????### *% % #??????????????? | | ??????????????????????# #??????????????? | | ??????????????????????# # #??????????????? | | ??????????????????????## # ?????????????? | | ??????????????????????# #???????????? | | ??????????????????????### # ??????????? | | ???????????????????????? # #????????? | | ???????????????????????# ## ##????????? | | ???????????????????????# # # #?????????? | +----------------------------------------------------+ Best States ------------- Heat Dissipation 39 Energy Generation 10 Energy Capacity 250 Matter Stores 290 Matter Capacity 300 Sight Range 16 Robot Scan Range 14 Terrain Scan Density 10 Evasion (%) 55 Recoil Reduction 2 Item Schematics ----------------- None Robot Schematics ------------------ None Fabricated ------------ Nothing Alien Tech Used ----------------- None Achievements -------------- None Challenges ------------ None Game ------ Seed SkeletonAntimatterCompactor Manual? 0 Play Time 00:07:47 Cumulative 357.2 hours Start 2022.05.24 @ 21:00:54 End 2022.05.25 @ 19:14:14 Sessions 3 Manual Loads 0 Difficulty Rogue Special Mode None Game No. 388 Rogue 388 Adventurer 0 Explorer 0 Win Type - Total 29 Types 18/3/2/1/2/0/3/0/0 Lore% 89 Gallery% 88 Achievement% 80 Wizard Run 0 Options --------- ASCII 0 Keyboard 0 Movement Arrows Keybinds 0 Fullscreen 2 Font 18/SmallcapsGlow Map View 76x50 Tactical HUD 1 Map Filters NONE Filters NONE Steam 1 RUN: 3434d5df-6f9c-4028-8754-b52268d7204f